fUSD/lending_fUSD_20260322
["ID","MTS","AMOUNT","RATE_DAILY","PERIOD"]
[408703670,1774153837535,-2542.80682946,0.00013977,2]
[408703671,1774153837546,-1542.56891698,0.00013977,2]
[408703672,1774153837557,-136.46499929,0.00013977,2]
[408703673,1774153837567,-500.0,0.00015229,2]
[408703674,1774153837576,-367.95893957,0.00015229,2]
[408703675,1774153837589,-179.46988562,0.00015229,2]
[408703676,1774153837598,-500.0,0.00015229,2]
[408703677,1774153837608,-500.0,0.00015229,2]
[408703678,1774153837617,-500.0,0.00015229,2]
[408703679,1774153837627,-175.19866784,0.00015229,2]
[408703680,1774153837636,-500.0,0.00015229,2]
[408703681,1774153837645,-500.0,0.00015229,2]
[408703682,1774153837655,-500.0,0.00015229,2]
[408703683,1774153837664,-500.0,0.00015229,2]
[408703684,1774153837674,-500.0,0.00015229,2]
[408703685,1774153837683,-500.92274616,0.00015229,2]
[408703687,1774153837693,-291.31126,0.00015229,2]
[408703688,1774153837702,-500.0,0.00015229,2]
[408703689,1774153837711,-375.51582021,0.00015229,2]
[408703690,1774153837723,-124.48417979,0.00015229,2]
[408703691,1774153837732,-500.0,0.00015229,2]
[408703692,1774153837742,-500.0,0.00015229,2]
[408703693,1774153837752,-500.0,0.00015229,2]
[408703694,1774153837761,-500.0,0.00015229,2]
[408703695,1774153837770,-500.0,0.00015229,2]
[408703696,1774153837784,-500.0,0.00015229,2]
[408703697,1774153837793,-500.0,0.00015229,2]
[408703698,1774153837803,-500.0,0.00015229,2]
[408703699,1774153837813,-500.0,0.00015229,2]
[408703700,1774153837822,-500.0,0.00015229,2]
[408703701,1774153837832,-500.0,0.00015229,2]
[408703702,1774153837842,-500.0,0.00015229,2]
[408703703,1774153837851,-500.0,0.00015229,2]
[408703704,1774153837860,-500.0,0.00015229,2]
[408703705,1774153837870,-500.0,0.00015229,2]
[408703706,1774153837879,-500.0,0.00015229,2]
[408703707,1774153837889,-500.0,0.00015229,2]
[408703708,1774153837899,-500.0,0.00015229,2]
[408703709,1774153837908,-500.0,0.00015229,2]
[408703710,1774153837917,-500.0,0.00015229,2]
[408703711,1774153837927,-500.0,0.00015229,2]
[408703712,1774153837937,-500.0,0.00015229,2]
[408703713,1774153837947,-500.0,0.00015229,2]
[408703714,1774153837956,-500.0,0.00015229,2]
[408703715,1774153837971,-500.0,0.00015229,2]
[408703716,1774153837983,-500.0,0.00015229,2]
[408703717,1774153837992,-500.0,0.00015229,2]
[408703718,1774153838002,-500.0,0.00015229,2]
[408703719,1774153838011,-263.99629909,0.00015229,2]
[408703720,1774153838020,-500.0,0.00015229,2]
[408703721,1774153838030,-500.0,0.00015229,2]
[408703722,1774153838039,-500.0,0.00015229,2]
[408703723,1774153838048,-500.0,0.00015229,2]
[408703724,1774153838057,-500.0,0.00015229,2]
[408703725,1774153838067,-5111.51952112,0.0001523,2]
[408703728,1774153839540,-11861.86144857,0.0001523,2]
[408703729,1774153839552,-258.87161287,0.0001523,2]
[408703730,1774153839599,-600.52297931,0.0001523,2]
[408703731,1774153839991,-24922.0282231,0.0001523,2]
[408703732,1774153840001,-830.016211,0.0001523,2]
[408703733,1774153840011,-830.016211,0.0001523,2]
[408703734,1774153840021,-830.016211,0.0001523,2]
[408703735,1774153840030,-830.016211,0.0001523,2]
[408703736,1774153840040,-152.378288,0.0001523,2]
[408703737,1774153840049,-151.0,0.0001523,2]
[408703738,1774153840059,-151.0,0.0001523,2]
[408703739,1774153840068,-208.207118,0.0001523,2]
[408703740,1774153840078,-151.0,0.0001523,2]
[408703741,1774153840088,-151.0,0.0001523,2]
[408703742,1774153840098,-151.0,0.0001523,2]
[408703743,1774153840108,-151.0,0.0001523,2]
[408703744,1774153840118,-151.0,0.0001523,2]
[408703745,1774153840128,-151.295504,0.0001523,2]
[408703746,1774153840138,-151.0,0.0001523,2]
[408703747,1774153840148,-1286.91012,0.0001523,2]
[408703748,1774153840157,-306.153778,0.0001523,2]
[408703749,1774153840167,-1286.91012,0.0001523,2]
[408703750,1774153840176,-306.153778,0.0001523,2]
[408703751,1774153840186,-306.153778,0.0001523,2]
[408703752,1774153840197,-306.153778,0.0001523,2]
[408703754,1774153840207,-1286.91012,0.0001523,2]
[408703755,1774153840218,-151.0,0.0001523,2]
[408703756,1774153840231,-1286.91012,0.0001523,2]
[408703757,1774153840240,-1215.1205075,0.0001524,2]
[408703758,1774153840249,-502.51411479,0.00015268,2]
[408703759,1774153840258,-1412.24313016,0.00015292,2]
[408703760,1774153840269,-979.16666667,0.00015295,2]
[408703761,1774153840279,-151.0,0.00015297,2]
[408703762,1774153840288,-151.0,0.00015319,2]
[408703763,1774153840299,-151.0,0.00015322,2]
[408703764,1774153840308,-167.011227,0.00015322,2]
[408703766,1774153840318,-151.0,0.00015322,2]
[408703768,1774153840327,-154.717394,0.00015322,2]
[408703770,1774153840337,-151.0,0.00015322,2]
[408703771,1774153840346,-151.0,0.00015322,2]
[408703772,1774153840356,-151.0,0.00015322,2]
[408703773,1774153840365,-151.0,0.00015322,2]
[408703774,1774153840374,-830.016211,0.00015322,2]
[408703775,1774153840384,-830.016211,0.00015322,2]
[408703776,1774153840393,-830.016211,0.00015322,2]
[408703777,1774153840402,-830.016211,0.00015322,2]
[408703778,1774153840412,-151.0,0.00015322,2]
[408703779,1774153840422,-151.0,0.00015322,2]
[408703780,1774153840431,-151.0,0.00015322,2]
[408703781,1774153840441,-151.0,0.00015322,2]
[408703782,1774153840450,-263.634474,0.00015322,2]
[408703783,1774153840460,-151.0,0.00015322,2]
[408703784,1774153840469,-151.0,0.00015322,2]
[408703785,1774153840478,-151.0,0.00015322,2]
[408703786,1774153840488,-2000.0,0.00015332,2]
[408703787,1774153840498,-279.84827484,0.00015335,2]
[408703788,1774153840507,-9412.68905664,0.00015345,2]
[408703789,1774153840516,-1215.1205075,0.0001535,2]
[408703790,1774153840526,-168.0,0.0001537,2]
[408703791,1774153840535,-1680.0,0.00015372,2]
[408703792,1774153840545,-500.0,0.00015373,2]
[408703793,1774153840554,-500.72748005,0.00015373,2]
[408703794,1774153840563,-500.0,0.00015373,2]
[408703795,1774153840572,-501.65579468,0.00015373,2]
[408703796,1774153840582,-211.86537116,0.00015373,2]
[408703797,1774153840591,-500.0,0.00015373,2]
[408703798,1774153840600,-500.73530343,0.00015373,2]
[408703799,1774153840610,-500.65903266,0.00015373,2]
[408703800,1774153840619,-500.40641645,0.00015373,2]
[408703801,1774153840629,-500.0,0.00015373,2]
[408703802,1774153840639,-501.26166686,0.00015373,2]
[408703803,1774153840648,-502.30179082,0.00015373,2]
[408703804,1774153840657,-500.6391206,0.00015373,2]
[408703805,1774153840666,-500.0,0.00015373,2]
[408703806,1774153840675,-500.71304925,0.00015373,2]
[408703807,1774153840685,-188.41739919,0.00015373,2]
[408703808,1774153840694,-250.0,0.00015385,2]
[408703809,1774153840704,-168.0,0.00015447,2]
[408703810,1774153840713,-279.84827484,0.00015448,2]
[408703811,1774153840723,-1215.1205075,0.0001546,2]
[408703812,1774153840733,-166.66,0.00015489,2]
[408703813,1774153840743,-1412.24313016,0.00015495,2]
[408703814,1774153840752,-4000.0,0.00015507,2]
[408703815,1774153840762,-163.0,0.00015519,3]
[408703816,1774153840771,-279.84827484,0.00015561,2]
[408703817,1774153840781,-1608.80441282,0.00015563,2]
[408703818,1774153840790,-168.0,0.00015568,2]
[408703819,1774153840800,-1215.1205075,0.0001557,2]
[408703820,1774153840809,-160.0,0.00015586,7]
[408703821,1774153840819,-168.0,0.00015598,2]
[408703822,1774153840828,-168.0,0.00015633,2]
[408703823,1774153840838,-1757.0,0.00015638,5]
[408703824,1774153840849,-1968.0,0.00015638,5]
[408703825,1774153840858,-168.0,0.00015652,2]
[408703826,1774153840868,-279.84827484,0.00015674,2]
[408703827,1774153840878,-1539.69101518,0.0001568,2]
[408703828,1774153840890,-1215.1205075,0.0001568,2]
[408703829,1774153840902,-1412.24313016,0.00015697,2]
[408703830,1774153840912,-2000.75171637,0.00015702,2]
[408703831,1774153841102,-505.0,0.00014077,2]
[408703832,1774153841114,-1995.0,0.00014077,2]
[408703833,1774153841123,-4134.73542026,0.00015702,2]
[408703834,1774153841132,-700.0,0.00015726,2]
[408703835,1774153841141,-700.0,0.00015726,2]
[408703836,1774153841152,-177.202,0.00015773,2]
[408703837,1774153841161,-2884.564,0.00015773,2]
[408703838,1774153841171,-279.84827484,0.00015787,2]
[408703839,1774153841180,-1215.1205075,0.0001579,2]
[408703840,1774153841189,-173.4893957,0.0001584,2]
[408703841,1774153841199,-500.0,0.00015865,2]
[408703842,1774153841208,-168.0,0.00015885,2]
[408703843,1774153841218,-1895.88672521,0.0001589,2]
[408703844,1774153841237,-104.11327479,0.0001589,2]
[408703845,1774153841247,-1971.38672521,0.00015895,2]
[408703852,1774153842433,-495.483711,0.0001497,2]
[408703855,1774153842442,-623.956,0.00015844,2]
[408703858,1774153842452,-839.3086602,0.00015895,2]
[408703860,1774153842488,-1176.64868278,0.00015895,2]
[408703861,1774153842499,-12.65593181,0.00015895,2]
[408703862,1774153842509,-151.0,0.000159,2]
[408703863,1774153842518,-151.0,0.000159,2]
[408703864,1774153842528,-279.84827484,0.000159,2]
[408703865,1774153842537,-151.0,0.000159,2]
[408703866,1774153842546,-236.96603048,0.000159,2]
[408703867,1774153842557,-593.05018052,0.000159,2]
[408703868,1774153842566,-830.016211,0.000159,2]
[408703869,1774153842575,-830.016211,0.000159,2]
[408703870,1774153842585,-830.016211,0.000159,2]
[408703871,1774153842594,-151.0,0.000159,2]
[408703872,1774153842603,-151.0,0.000159,2]
[408703873,1774153842613,-151.0,0.000159,2]
[408703874,1774153842622,-151.0,0.000159,2]
[408703875,1774153842632,-1412.24313016,0.000159,2]
[408703876,1774153842642,-724.66703627,0.000159,2]
[408703877,1774153842651,-151.0,0.000159,2]
[408703878,1774153842662,-151.0,0.000159,2]
[408703879,1774153842671,-151.0,0.000159,2]
[408703880,1774153842681,-441.23266206,0.000159,2]
[408703881,1774153842691,-12175.79803882,0.000159,2]
[408703882,1774153842703,-5100.93599827,0.000159,2]
[408703883,1774153842723,-1036.94153083,0.000159,2]
[408703884,1774153842734,-10126.67700509,0.000159,2]
[408703885,1774153842744,-1286.91012,0.000159,2]
[408703886,1774153842753,-306.153778,0.000159,2]
[408703887,1774153842763,-306.153778,0.000159,2]
[408703889,1774153842773,-1286.91012,0.000159,2]
[408703891,1774153842782,-306.153778,0.000159,2]
[408703892,1774153842793,-306.153778,0.000159,2]
[408703893,1774153842803,-1286.91012,0.000159,2]
[408703894,1774153842814,-151.0,0.000159,2]
[408703895,1774153842823,-1286.91012,0.000159,2]
[408703896,1774153842833,-1706.0,0.00015904,5]
[408703897,1774153842844,-215.2165133,0.00015904,2]
[408703898,1774153842854,-144.60393333,0.00015904,2]
[408703899,1774153842867,-82.92259617,0.00015904,2]
[408703900,1774153842877,-1321.29830353,0.00015904,2]
[408703901,1774153842886,-200.0,0.00015904,2]
[408703902,1774153842896,-200.0,0.00015904,2]
[408703903,1774153842906,-1639.19,0.00015913,2]
[408703904,1774153842916,-1000.0,0.00015921,2]
[408703905,1774153842925,-1000.0,0.00015921,2]
[408703907,1774153842934,-249.11124444,0.00015921,2]
[408703909,1774153842944,-1000.0,0.00015921,2]
[408703911,1774153842954,-902.67516004,0.00015921,2]
[408703913,1774153842965,-97.32483996,0.00015921,2]
[408703914,1774153842975,-151.0,0.00015921,2]
[408703915,1774153842984,-151.0,0.00015921,2]
[408703916,1774153842993,-151.0,0.00015921,2]
[408703917,1774153843003,-1261.0,0.00015921,2]
[408703918,1774153843012,-150.162,0.00015921,2]
[408703919,1774153843021,-1215.0,0.00015921,2]
[408703920,1774153843031,-926.964,0.00015921,2]
[408703921,1774153843041,-2273.84190396,0.00015921,2]
[408703922,1774153843052,-1240.15809604,0.00015921,2]
[408703923,1774153843061,-1345.0,0.00015921,2]
[408703924,1774153843071,-874.0,0.00015924,2]
[408703925,1774153843080,-168.0,0.0001596,2]
[408703926,1774153843090,-166.66,0.00015968,2]
[408703927,1774153843099,-151.0,0.0001597,2]
[408703928,1774153843109,-1521.0,0.00015971,2]
[408703929,1774153843118,-160.0,0.00015971,2]
[408703930,1774153843127,-1521.0,0.00015971,2]
[408703931,1774153843137,-160.0,0.00015971,2]
[408703932,1774153843146,-456.12817696,0.00015971,2]
[408703933,1774153843156,-160.0,0.00015971,2]
[408703934,1774153843165,-222.90548411,0.00015971,2]
[408703935,1774153843175,-153.0,0.00015971,2]
[408703936,1774153843184,-239.0021021,0.00015971,2]
[408703937,1774153843194,-151.0,0.00015971,2]
[408703938,1774153843203,-153.78487307,0.00015971,2]
[408703939,1774153843213,-168.0,0.00015971,2]
[408703940,1774153843225,-500.0,0.00015973,2]
[408703941,1774153843235,-500.0,0.00015973,2]
[408703942,1774153843245,-500.0,0.00015973,2]
[408703943,1774153843255,-500.0,0.00015973,2]
[408703944,1774153843264,-500.0,0.00015973,2]
[408703945,1774153843274,-500.0,0.00015973,2]
[408703946,1774153843283,-501.45694581,0.00015973,2]
[408703947,1774153843293,-314.25079956,0.00015973,2]
[408703948,1774153843303,-502.24763857,0.00015973,2]
[408703949,1774153843312,-500.0,0.00015973,2]
[408703950,1774153843321,-500.0,0.00015973,2]
[408703951,1774153843330,-500.0,0.00015973,2]
[408703952,1774153843339,-151.0,0.00015976,2]
[408703953,1774153843348,-168.0,0.0001598,2]
[408703954,1774153843358,-168.0,0.00015981,2]
[408703955,1774153843367,-218.19919069,0.0001599,2]
[408703956,1774153843376,-218.19919069,0.0001599,2]
[408703957,1774153843386,-218.19919069,0.0001599,2]
[408703958,1774153843395,-151.0,0.00015997,2]
[408703959,1774153843404,-165.541,0.00015998,2]
[408703960,1774153843413,-150.147,0.00015998,2]
[408703961,1774153843423,-150.0,0.00015998,2]
[408703962,1774153843432,-150.097,0.00015998,2]
[408703963,1774153843441,-150.0,0.00015998,2]
[408703964,1774153843450,-150.114,0.00015998,2]
[408703965,1774153843459,-150.0,0.00015999,2]
[408703966,1774153843469,-1313.58911789,0.00015999,5]
[408703967,1774153843478,-155.541,0.00015999,2]
[408703968,1774153843487,-167.27777233,0.00015999,2]
[408703969,1774153843497,-500.0,0.00015999,2]
[408703970,1774153843506,-348.83429547,0.00015999,2]
[408703971,1774153843515,-500.0,0.00015999,2]
[408703972,1774153843525,-500.0,0.00015999,2]
[408703973,1774153843534,-500.0,0.00015999,2]
[408703974,1774153843543,-500.0,0.00015999,2]
[408703975,1774153843552,-500.0,0.00015999,2]
[408703976,1774153843560,-500.0,0.00015999,2]
[408703977,1774153843570,-500.0,0.00015999,2]
[408703978,1774153843579,-573.42603426,0.00015999,2]
[408703979,1774153843588,-500.0,0.00015999,2]
[408703980,1774153843597,-576.1895816,0.00015999,2]
[408703981,1774153843607,-518365.98754162,0.00016,2]
[408703982,1774153843619,-535.89563599,0.00016,2]
[408703983,1774153843630,-12940.55648981,0.00016,2]
[408703984,1774153843641,-5710.90830266,0.00016,2]
[408703985,1774153845306,-1215.1205075,0.000159,2]
[408703986,1774153845315,-215.2165133,0.00015999,2]
[408703987,1774153845326,-227.5265295,0.00015999,2]
[408703988,1774153845336,-84986.51058806,0.00016,2]
[408703989,1774153845584,-661.27092094,0.00016,2]
[408703990,1774153845595,-881.94035645,0.00016,2]
[408703991,1774153845634,-726.65367492,0.00016,2]
[408704000,1774154336967,162.88,7.226e-05,2]
[408704001,1774154337154,162.88,9.635e-05,2]
[408704002,1774154337339,162.88,0.00012043,2]
[408704004,1774154844130,-233.7981247,0.00013876,2]
[408704005,1774154844155,-729.08975114,0.00013876,2]
[408704006,1774154844175,-195.0,0.00013924,2]
[408704007,1774154844196,-500.0,0.00013973,2]
[408704008,1774154844216,-501.94992362,0.00013973,2]
[408704009,1774154844239,-1200.0,0.00013974,2]
[408704010,1774154844264,-150.0,0.00013974,2]
[408704011,1774154844302,-500.0,0.00013975,2]
[408704012,1774154844330,-500.0,0.00013975,2]
[408704013,1774154844359,-500.0,0.00013975,2]
[408704014,1774154844391,-500.0,0.00013975,2]
[408704015,1774154844424,-500.0,0.00013975,2]
[408704016,1774154844453,-500.0,0.00013975,2]
[408704017,1774154844480,-500.0,0.00013975,2]
[408704018,1774154844507,-500.0,0.00013975,2]
[408704019,1774154844538,-500.0,0.00013975,2]
[408704020,1774154844571,-500.0,0.00013975,2]
[408704021,1774154844604,-176.39962991,0.00013975,2]
[408704022,1774154844636,-500.0,0.00013975,2]
[408704023,1774154844666,-500.0,0.00013975,2]
[408704024,1774154844705,-500.0,0.00013975,2]
[408704025,1774154844734,-500.0,0.00013975,2]
[408704026,1774154844764,-500.0,0.00013975,2]
[408704027,1774154844794,-500.0,0.00013975,2]
[408704028,1774154844820,-166.76919402,0.00013975,2]
[408704029,1774154844847,-123.84246551,0.00013976,2]
[408704030,1774155031538,-186.11573841,0.00013876,2]
[408704031,1774155031548,-250.0,0.00013924,2]
[408704032,1774155031558,-150.0,0.00013975,2]
[408704033,1774155031567,-1200.0,0.00013975,2]
[408704034,1774155031577,-34137.4124,0.00013976,2]
[408704035,1774155031587,-524.0,0.00014,2]
[408704036,1774155031597,-729.08975112,0.00014101,2]
[408704037,1774155031610,-729.08975112,0.00014326,2]
[408704038,1774155031619,-1500.0,0.00014342,2]
[408704039,1774155031629,-700.0,0.00014356,2]
[408704040,1774155031638,-500.0,0.00014356,2]
[408704041,1774155031650,-700.0,0.00014356,2]
[408704042,1774155031659,-3402.78,0.00014394,2]
[408704043,1774155031670,-1980.65,0.00014413,2]
[408704044,1774155031679,-7286.87,0.00014427,2]
[408704045,1774155031688,-162.88,0.00014452,2]
[408704046,1774155031698,-3240.0,0.00014454,2]
[408704047,1774155031707,-162.56,0.00014474,2]
[408704048,1774155031716,-729.08975112,0.00014551,2]
[408704049,1774155031726,-1568.0,0.0001472,2]
[408704050,1774155031735,-935.4095791,0.0001472,2]
[408704051,1774155031747,-1467.5904209,0.0001472,2]
[408704052,1774155031758,-200.0,0.00014761,2]
[408704053,1774155031767,-228.7657733,0.00014776,2]
[408704054,1774155031778,-500.32397782,0.00014776,2]
[408704055,1774155031787,-150.0,0.0001497,2]
[408704056,1774155031797,-604.08,0.00015,2]
[408704057,1774155031806,-729.08975112,0.00015,2]
[408704058,1774155031815,-255.0,0.00015093,2]
[408704059,1774155031825,-142.69580227,0.00015094,2]
[408704061,1774155031835,-357.30419773,0.00015094,2]
[408704063,1774155031849,-250.0,0.00015094,2]
[408704064,1774155031858,-500.0,0.00015094,2]
[408704065,1774155031867,-250.0,0.00015094,2]
[408704066,1774155031877,-250.0,0.00015094,2]
[408704067,1774155031887,-500.0,0.00015094,2]
[408704068,1774155031896,-250.0,0.00015094,2]
[408704069,1774155031906,-250.0,0.00015094,2]
[408704070,1774155031915,-500.0,0.00015094,2]
[408704071,1774155031925,-250.0,0.00015094,2]
[408704072,1774155031935,-250.0,0.00015094,2]
[408704073,1774155031945,-500.0,0.00015094,2]
[408704074,1774155031954,-250.0,0.00015094,2]
[408704075,1774155031964,-286.84629583,0.00015094,2]
[408704076,1774155031973,-500.0,0.00015094,2]
[408704077,1774155031982,-250.0,0.00015094,2]
[408704078,1774155031991,-200.79040767,0.00015094,2]
[408704079,1774155032003,-299.20959233,0.00015094,2]
[408704080,1774155032013,-250.0,0.00015094,2]
[408704081,1774155032023,-167.3015854,0.00015094,2]
[408704082,1774155032037,-332.6984146,0.00015094,2]
[408704083,1774155032046,-500.0,0.00015094,2]
[408704084,1774155032056,-500.0,0.00015094,2]
[408704085,1774155032065,-500.0,0.00015094,2]
[408704086,1774155032075,-178.82,0.00015179,2]
[408704087,1774155032085,-168.0,0.00015187,2]
[408704088,1774155032095,-162.56,0.00015198,2]
[408704089,1774155032104,-176.70665444,0.00015225,2]
[408704090,1774155032115,-552.38309668,0.00015225,2]
[408704091,1774155032125,-250.0,0.00015237,2]
[408704092,1774155032134,-365.34148584,0.00015259,2]
[408704093,1774155032143,-195.0,0.00015264,2]
[408704094,1774155032152,-250.0,0.00015264,2]
[408704095,1774155032162,-250.0,0.00015264,2]
[408704096,1774155032171,-979.16666667,0.00015305,2]
[408704097,1774155032180,-6785.67,0.0001531,2]
[408704098,1774155032190,-9999.99,0.0001531,2]
[408704099,1774155032199,-1857.49656676,0.00015322,2]
[408704100,1774155032208,-244.26433695,0.00015322,2]
[408704101,1774155032217,-3131.51939082,0.0001537,2]
[408704102,1774155032227,-1680.0,0.00015372,2]
[408704103,1774155032236,-729.08975112,0.0001545,2]
[408704104,1774155032245,-3495.78,0.00015595,2]
[408704105,1774155032254,-215.0,0.00015616,2]
[408704106,1774155032263,-729.08975112,0.00015675,2]
[408704107,1774155032272,-442.75,0.00015696,2]
[408704108,1774155032281,-700.0,0.00015726,2]
[408704109,1774155032292,-500.0,0.00015726,2]
[408704110,1774155032303,-700.0,0.00015726,2]
[408704111,1774155032313,-168.0,0.00015746,2]
[408704112,1774155032323,-2307.651,0.000158,2]
[408704113,1774155032332,-177.203,0.000158,2]
[408704114,1774155032342,-2403.0,0.00015845,2]
[408704115,1774155032351,-500.0,0.00015865,2]
[408704116,1774155032361,-729.08975112,0.000159,2]
[408704117,1774155032370,-1157.52348073,0.000159,2]
[408704118,1774155032381,-378.35139607,0.000159,2]
[408704121,1774155037666,-3464.1251232,0.000159,2]
[408704122,1774155037677,-131.125096,0.00015921,2]
[408704123,1774155037688,-500.0,0.00015921,2]
[408704124,1774155037700,-713.874904,0.00015921,2]
[408704125,1774155037710,-74.58374794,0.00015921,2]
[408704126,1774155037722,-1540.34934384,0.00015921,2]
[408704127,1774155037734,-1899.06690822,0.00015921,2]
[408704128,1774155037746,-621.0,0.00015921,2]
[408704129,1774155037756,-1044.0,0.00015921,2]
[408704130,1774155037766,-814.92689689,0.00015921,2]
[408704138,1774155039794,-446.07310311,0.00015921,2]
[408704141,1774155039803,-415.0,0.00015921,2]
[408704143,1774155039813,-689.5095187,0.00015921,2]
[408704145,1774155039825,-354.615,0.00015921,2]
[408704147,1774155039837,-430.35,0.00015921,2]
[408704149,1774155039849,-1058.577,0.00015921,2]
[408704152,1774155039861,-875.50000001,0.00015921,2]
[408704154,1774155039873,-351.44848129,0.00015921,2]
[408704155,1774155039882,-18.43651871,0.00015922,2]
[408704156,1774155039894,-144.12348129,0.00015922,2]
[408704157,1774155039905,-181.7027536,0.00015962,2]
[408704158,1774155039915,-157.45512208,0.00015963,2]
[408704159,1774155040275,-325.47403664,0.00015963,2]
[408704160,1774155040287,-305.38617638,0.00015963,2]
[408704179,1774155042983,-4808.07435318,0.00015921,2]
[408704180,1774155043001,-1199.92564682,0.00015921,2]
[408704181,1774155043011,-779.6846649,0.00015963,2]
[408704182,1774155043021,-500.0,0.00015973,2]
[408704183,1774155043032,-500.43058459,0.00015973,2]
[408704184,1774155043042,-500.4848322,0.00015973,2]
[408704185,1774155043052,-500.74920901,0.00015973,2]
[408704186,1774155043063,-500.70382414,0.00015973,2]
[408704187,1774155043072,-168.85688516,0.00015973,2]
[408704193,1774155045491,-331.14311484,0.00015973,2]
[408704194,1774155045501,-500.63722165,0.00015973,2]
[408704195,1774155045511,-141.22889847,0.00015973,2]
[408704196,1774155045522,-358.77110153,0.00015973,2]
[408704197,1774155045531,-501.22701546,0.00015973,2]
[408704198,1774155045541,-500.52131154,0.00015973,2]
[408704199,1774155045551,-501.29739863,0.00015973,2]
[408704200,1774155045561,-500.0,0.00015973,2]
[408704201,1774155045570,-368.48625872,0.00015973,2]
[408704202,1774155045580,-151.0,0.00015997,2]
[408704203,1774155045590,-27917.23221048,0.00015999,2]
[408704204,1774155045858,-1354.67697788,0.00015999,2]
[408704267,1774155268586,2369.31,0.00011685,2]
[408704268,1774155514781,-163.0,0.00012673,2]
[408704269,1774155514804,-168.0,0.00012673,2]
[408704271,1774155521253,161.0,6.859e-05,2]
[408704272,1774155521472,154.0,6.859e-05,2]
[408704273,1774155521691,154.0,6.859e-05,2]
[408704275,1774155521910,154.0,6.859e-05,2]
[408704276,1774155522149,154.0,6.859e-05,2]
[408704278,1774155522365,154.0,6.859e-05,2]
[408704279,1774155522579,154.0,6.859e-05,2]
[408704280,1774155522793,154.0,6.859e-05,2]
[408704281,1774155523236,154.0,6.859e-05,2]
[408704282,1774155523269,154.0,6.859e-05,2]
[408704283,1774155523454,154.0,6.859e-05,2]
[408704284,1774155523668,154.0,6.859e-05,2]
[408704285,1774155523916,154.0,6.859e-05,2]
[408704286,1774155524147,154.0,6.859e-05,2]
[408704287,1774155524359,154.0,6.859e-05,2]
[408704288,1774155524568,154.0,6.859e-05,2]
[408704289,1774155524782,154.0,6.859e-05,2]
[408704290,1774155525001,154.0,6.859e-05,2]
[408704291,1774155525217,154.0,6.859e-05,2]
[408704292,1774155525449,154.0,6.859e-05,2]
[408704293,1774155525666,154.0,6.859e-05,2]
[408704294,1774155525877,154.0,6.859e-05,2]
[408704295,1774155526095,154.0,6.859e-05,2]
[408704296,1774155526319,154.0,6.859e-05,2]
[408704297,1774155526539,154.0,6.859e-05,2]
[408704298,1774155526915,154.0,6.859e-05,2]
[408704299,1774155526976,154.0,6.859e-05,2]
[408704300,1774155527199,154.0,6.859e-05,2]
[408704301,1774155527411,154.0,6.859e-05,2]
[408704302,1774155527620,154.0,6.859e-05,2]
[408704303,1774155527840,42.01,6.859e-05,2]
[408704304,1774155527868,111.99,6.859e-05,2]
[408704305,1774155528210,154.0,6.859e-05,2]
[408704306,1774155528423,154.0,6.859e-05,2]
[408704307,1774155528635,154.0,6.859e-05,2]
[408704308,1774155528854,43.61378847,6.859e-05,2]
[408704309,1774155528877,110.38621153,6.859e-05,2]
[408704310,1774155530350,166.0,6.693e-05,2]